[Event "World Junior Chess Championship U20 2022"]
[White "Muradli, Mahammad"]
[Black "Cotic, Borna"]
[WhiteFideId "13409301"]
[BlackFideId "14542307"]
[WhiteElo "2550"]
[BlackElo "2133"]
[Result "1-0"]
[Round "04"]
[TimeControl "5400+30"]
[Date "2022.10.14"]
[WhiteClock "0:44:17"]
[BlackClock "0:04:06"]

1. c4 {[%clk 1:28:10]}  e6 {[%clk 1:30:38]} 2. Nf3 {[%clk 1:28:30]}  d5 {[%clk 1:30:20]} 3. g3 {[%clk 1:28:53]}  Nf6 {[%clk 1:30:39]} 4. Bg2 {[%clk 1:28:54]}  Be7 {[%clk 1:30:52]} 5. d4 {[%clk 1:29:18]}  O-O {[%clk 1:31:03]} 6. O-O {[%clk 1:29:43]}  Nbd7 {[%clk 1:31:12]} 7. Qd3 {[%clk 1:27:27]}  c6 {[%clk 1:23:59]} 8. Nc3 {[%clk 1:21:06]}  b6 {[%clk 1:19:53]} 9. cxd5 {[%clk 1:15:58]}  cxd5 {[%clk 1:12:47]} 10. Bf4 {[%clk 1:15:47]}  a6 {[%clk 0:54:31]} 11. Rfc1 {[%clk 1:14:01]}  Bb7 {[%clk 0:49:35]} 12. Na4 {[%clk 1:06:01]}  Rc8 {[%clk 0:40:38]} 13. Rxc8 {[%clk 1:06:24]}  Qxc8 {[%clk 0:40:18]} 14. Rc1 {[%clk 1:06:38]}  Qa8 {[%clk 0:39:57]} 15. Qb3 {[%clk 1:05:22]}  b5 {[%clk 0:36:51]} 16. Nc5 {[%clk 1:05:28]}  Rc8 {[%clk 0:35:13]} 17. Qe3 {[%clk 1:00:43]}  Nxc5 {[%clk 0:25:00]} 18. dxc5 {[%clk 1:00:32]}  Ne4 {[%clk 0:24:34]} 19. b4 {[%clk 1:00:11]}  a5 {[%clk 0:23:41]} 20. a3 {[%clk 0:59:16]}  axb4 {[%clk 0:24:04]} 21. axb4 {[%clk 0:59:16]}  Qa4 {[%clk 0:24:03]} 22. Qd4 {[%clk 0:49:09]}  Qa2 {[%clk 0:20:02]} 23. Ne5 {[%clk 0:42:55]}  f6 {[%clk 0:09:10]} 24. Bxe4 {[%clk 0:42:42]}  fxe5 {[%clk 0:09:00]} 25. Bxe5 {[%clk 0:43:06]}  dxe4 {[%clk 0:08:20]} 26. Qd7 {[%clk 0:43:28]}  Qd5 {[%clk 0:06:20]} 27. Qxe7 {[%clk 0:43:51]}  Qxe5 {[%clk 0:06:20]} 28. Qxb7 {[%clk 0:44:11]}  Rf8 {[%clk 0:07:13]} 29. Qxb5 {[%clk 0:43:38]}  e3 {[%clk 0:06:40]} 30. f4 {[%clk 0:43:33]}  Qb2 {[%clk 0:03:56]} 31. Qc4 {[%clk 0:43:55]}  Kh8 {[%clk 0:04:06]} 32. c6 {[%clk 0:44:17]} 1-0


[Site "http://www.chessbomb.com"]

[Event "World Junior Chess Championship U20 2022"]
[White "Sitbon, Itay"]
[Black "Parkhov, Yair"]
[WhiteFideId "2820706"]
[BlackFideId "2813408"]
[WhiteElo "2133"]
[BlackElo "2484"]
[Result "1/2-1/2"]
[Round "04"]
[TimeControl "5400+30"]
[Date "2022.10.14"]
[WhiteClock "0:10:27"]
[BlackClock "0:04:22"]

1. d4 {[%clk 1:30:21]}  Nf6 {[%clk 1:30:16]} 2. c4 {[%clk 1:30:27]}  e6 {[%clk 1:22:19]} 3. Nf3 {[%clk 1:22:59]}  d5 {[%clk 1:22:41]} 4. g3 {[%clk 1:23:27]}  Bb4+ {[%clk 1:23:05]} 5. Bd2 {[%clk 1:23:48]}  a5 {[%clk 1:23:30]} 6. Qc2 {[%clk 1:23:41]}  O-O {[%clk 1:23:26]} 7. Bg2 {[%clk 1:24:02]}  c5 {[%clk 1:23:43]} 8. cxd5 {[%clk 1:21:42]}  cxd4 {[%clk 1:22:06]} 9. Nxd4 {[%clk 1:21:44]}  Qb6 {[%clk 1:22:26]} 10. Nf3 {[%clk 1:21:09]}  exd5 {[%clk 1:15:55]} 11. O-O {[%clk 1:21:23]}  Nc6 {[%clk 1:13:11]} 12. Bg5 {[%clk 1:11:12]}  Ne4 {[%clk 1:09:02]} 13. Be3 {[%clk 1:11:39]}  Qa6 {[%clk 1:05:40]} 14. a3 {[%clk 1:10:32]}  Be7 {[%clk 1:03:33]} 15. Rd1 {[%clk 0:59:52]}  Rd8 {[%clk 0:54:08]} 16. Nbd2 {[%clk 0:54:14]}  Bf5 {[%clk 0:52:49]} 17. Nxe4 {[%clk 0:53:08]}  Bxe4 {[%clk 0:53:02]} 18. Qd2 {[%clk 0:52:57]}  a4 {[%clk 0:42:35]} 19. Nd4 {[%clk 0:45:55]}  Bxg2 {[%clk 0:40:51]} 20. Kxg2 {[%clk 0:45:09]}  Bf6 {[%clk 0:41:11]} 21. Nxc6 {[%clk 0:36:02]}  bxc6 {[%clk 0:41:27]} 22. Rac1 {[%clk 0:36:30]}  d4 {[%clk 0:36:09]} 23. Bf4 {[%clk 0:36:24]}  Qb5 {[%clk 0:35:25]} 24. Qd3 {[%clk 0:33:15]}  Qxb2 {[%clk 0:22:59]} 25. Rxc6 {[%clk 0:33:08]}  Re8 {[%clk 0:22:01]} 26. Rd2 {[%clk 0:31:19]}  Qb3 {[%clk 0:19:12]} 27. Qf3 {[%clk 0:28:25]}  Ra7 {[%clk 0:13:25]} 28. Rd3 {[%clk 0:24:59]}  Qb5 {[%clk 0:11:06]} 29. h4 {[%clk 0:17:08]}  Rae7 {[%clk 0:08:58]} 30. Rc2 {[%clk 0:09:20]}  Re6 {[%clk 0:08:44]} 31. Rcd2 {[%clk 0:09:06]}  h6 {[%clk 0:08:46]} 32. h5 {[%clk 0:08:05]}  Qc4 {[%clk 0:03:57]} 33. e3 {[%clk 0:06:53]}  dxe3 {[%clk 0:04:21]} 34. Rxe3 {[%clk 0:06:34]}  Rxe3 {[%clk 0:04:37]} 35. Bxe3 {[%clk 0:07:02]}  Qc3 {[%clk 0:03:50]} 36. Bf4 {[%clk 0:07:10]}  Qxf3+ {[%clk 0:03:10]} 37. Kxf3 {[%clk 0:07:38]}  Rc8 {[%clk 0:03:25]} 38. Bd6 {[%clk 0:06:31]}  Rc3+ {[%clk 0:02:20]} 39. Ke4 {[%clk 0:06:34]}  Rb3 {[%clk 0:01:51]} 40. Rd3 {[%clk 0:05:30]}  Rb2 {[%clk 0:01:38]} 41. f3 {[%clk 0:04:40]}  g6 {[%clk 0:23:25]} 42. hxg6 {[%clk 0:27:45]}  fxg6 {[%clk 0:23:41]} 43. Bb4 {[%clk 0:28:03]}  Re2+ {[%clk 0:23:10]} 44. Kd5 {[%clk 0:26:04]}  h5 {[%clk 0:23:08]} 45. Kc4 {[%clk 0:25:29]}  g5 {[%clk 0:23:16]} 46. Kb5 {[%clk 0:23:18]}  h4 {[%clk 0:22:10]} 47. gxh4 {[%clk 0:23:15]}  gxh4 {[%clk 0:21:52]} 48. f4 {[%clk 0:22:50]}  Kf7 {[%clk 0:20:36]} 49. Kxa4 {[%clk 0:22:38]}  Ke6 {[%clk 0:19:51]} 50. Kb5 {[%clk 0:19:29]}  Kf5 {[%clk 0:19:59]} 51. a4 {[%clk 0:19:13]}  Kg4 {[%clk 0:13:53]} 52. a5 {[%clk 0:19:18]}  h3 {[%clk 0:12:38]} 53. a6 {[%clk 0:18:48]}  Ra2 {[%clk 0:04:21]} 54. Rd1 {[%clk 0:17:08]}  h2 {[%clk 0:04:43]} 55. Rh1 {[%clk 0:13:28]}  Bd4 {[%clk 0:02:51]} 56. Bc5 {[%clk 0:10:59]}  Bxc5 {[%clk 0:03:13]} 57. Kxc5 {[%clk 0:11:25]}  Kxf4 {[%clk 0:03:36]} 58. a7 {[%clk 0:10:33]}  Kg3 {[%clk 0:04:01]} 59. Kb6 {[%clk 0:10:48]}  Kg2 {[%clk 0:04:22]} 60. Rb1 {[%clk 0:10:27]} 1/2-1/2


[Site "http://www.chessbomb.com"]

[Event "World Junior Chess Championship U20 2022"]
[White "Gov, Guy"]
[Black "Siddharth, Jagadeesh"]
[WhiteFideId "2820200"]
[BlackFideId "5818320"]
[WhiteElo "2121"]
[BlackElo "2415"]
[Result "0-1"]
[Round "04"]
[TimeControl "5400+30"]
[Date "2022.10.14"]
[WhiteClock "0:03:02"]
[BlackClock "0:17:27"]

1. e4 {[%clk 1:30:42]}  c6 {[%clk 1:30:52]} 2. d4 {[%clk 1:31:07]}  d5 {[%clk 1:31:14]} 3. Nc3 {[%clk 1:31:31]}  dxe4 {[%clk 1:31:33]} 4. Nxe4 {[%clk 1:31:55]}  Nf6 {[%clk 1:31:56]} 5. Nxf6+ {[%clk 1:32:20]}  exf6 {[%clk 1:32:20]} 6. c3 {[%clk 1:32:44]}  Bd6 {[%clk 1:32:41]} 7. Bd3 {[%clk 1:32:58]}  O-O {[%clk 1:32:58]} 8. Ne2 {[%clk 1:33:22]}  Re8 {[%clk 1:33:19]} 9. Qc2 {[%clk 1:33:46]}  h5 {[%clk 1:33:44]} 10. Be3 {[%clk 1:34:12]}  Nd7 {[%clk 1:34:04]} 11. O-O-O {[%clk 1:34:35]}  Nf8 {[%clk 1:34:31]} 12. Ng3 {[%clk 1:34:57]}  g6 {[%clk 1:34:01]} 13. Ne4 {[%clk 1:35:22]}  Be7 {[%clk 1:30:55]} 14. Kb1 {[%clk 1:35:47]}  Be6 {[%clk 1:29:14]} 15. h3 {[%clk 1:23:42]}  h4 {[%clk 1:28:58]} 16. g3 {[%clk 1:16:30]}  f5 {[%clk 1:22:38]} 17. Nd2 {[%clk 1:16:35]}  Bd6 {[%clk 1:21:28]} 18. Bh6 {[%clk 1:11:12]}  hxg3 {[%clk 1:14:35]} 19. fxg3 {[%clk 1:11:03]}  Bxg3 {[%clk 1:13:53]} 20. h4 {[%clk 1:00:37]}  Bd5 {[%clk 1:00:00]} 21. Rh3 {[%clk 0:46:29]}  f4 {[%clk 0:58:18]} 22. Ne4 {[%clk 0:32:13]}  Bxe4 {[%clk 0:57:10]} 23. Bxe4 {[%clk 0:29:44]}  Qe7 {[%clk 0:56:46]} 24. Bd3 {[%clk 0:27:01]}  Ne6 {[%clk 0:51:14]} 25. Rf1 {[%clk 0:21:33]}  Rad8 {[%clk 0:50:05]} 26. Bc4 {[%clk 0:19:18]}  b5 {[%clk 0:46:30]} 27. Bg5 {[%clk 0:17:58]}  Qd7 {[%clk 0:44:47]} 28. Bb3 {[%clk 0:15:09]}  c5 {[%clk 0:24:48]} 29. Bxd8 {[%clk 0:13:36]}  c4 {[%clk 0:25:10]} 30. Bf6 {[%clk 0:13:43]}  Nxd4 {[%clk 0:20:54]} 31. Qg2 {[%clk 0:12:32]}  Qf5+ {[%clk 0:20:40]} 32. Ka1 {[%clk 0:11:46]}  Nxb3+ {[%clk 0:21:08]} 33. axb3 {[%clk 0:12:11]}  Qxf6 {[%clk 0:21:30]} 34. bxc4 {[%clk 0:10:45]}  bxc4 {[%clk 0:20:48]} 35. Qb7 {[%clk 0:09:57]}  Qe6 {[%clk 0:16:39]} 36. Rhh1 {[%clk 0:09:02]}  Qf5 {[%clk 0:16:59]} 37. h5 {[%clk 0:06:59]}  Re5 {[%clk 0:16:18]} 38. Qb8+ {[%clk 0:04:32]}  Kg7 {[%clk 0:16:40]} 39. b4 {[%clk 0:02:57]}  cxb3 {[%clk 0:17:02]} 40. Kb2 {[%clk 0:02:46]}  Qc2+ {[%clk 0:17:16]} 41. Ka3 {[%clk 0:03:02]}  Qxc3 {[%clk 0:17:27]} 0-1


[Site "http://www.chessbomb.com"]

[Event "World Junior Chess Championship U20 2022"]
[White "Tripodi, Enzo"]
[Black "Gaal, Zsoka"]
[WhiteFideId "2822674"]
[BlackFideId "777765"]
[WhiteElo "2113"]
[BlackElo "2298"]
[Result "0-1"]
[Round "04"]
[TimeControl "5400+30"]
[Date "2022.10.14"]
[WhiteClock "0:23:24"]
[BlackClock "0:18:40"]

1. e4 {[%clk 1:30:09]}  c6 {[%clk 1:30:51]} 2. c4 {[%clk 1:29:43]}  d5 {[%clk 1:31:14]} 3. exd5 {[%clk 1:30:09]}  cxd5 {[%clk 1:31:37]} 4. cxd5 {[%clk 1:30:38]}  Nf6 {[%clk 1:31:57]} 5. Nc3 {[%clk 1:31:04]}  Nxd5 {[%clk 1:32:16]} 6. Nf3 {[%clk 1:31:29]}  Nc6 {[%clk 1:32:16]} 7. d4 {[%clk 1:31:56]}  Bg4 {[%clk 1:32:30]} 8. Qb3 {[%clk 1:32:22]}  Bxf3 {[%clk 1:32:44]} 9. gxf3 {[%clk 1:32:47]}  Nb6 {[%clk 1:33:02]} 10. Be3 {[%clk 1:31:00]}  e6 {[%clk 1:27:03]} 11. O-O-O {[%clk 1:31:02]}  Be7 {[%clk 1:24:38]} 12. d5 {[%clk 1:14:11]}  exd5 {[%clk 1:12:49]} 13. Bxb6 {[%clk 0:48:32]}  Qxb6 {[%clk 1:11:23]} 14. Qxb6 {[%clk 0:48:46]}  axb6 {[%clk 1:11:46]} 15. Rxd5 {[%clk 0:46:38]}  O-O {[%clk 1:06:58]} 16. Kb1 {[%clk 0:37:54]}  Bc5 {[%clk 0:55:38]} 17. Ne4 {[%clk 0:33:24]}  Nb4 {[%clk 0:34:25]} 18. Rd7 {[%clk 0:33:33]}  Rfd8 {[%clk 0:33:01]} 19. Rxd8+ {[%clk 0:32:46]}  Rxd8 {[%clk 0:33:22]} 20. Be2 {[%clk 0:25:14]}  Kf8 {[%clk 0:28:13]} 21. Rc1 {[%clk 0:22:19]}  Bd6 {[%clk 0:23:17]} 22. Bb5 {[%clk 0:17:02]}  Bf4 {[%clk 0:21:23]} 23. Re1 {[%clk 0:16:38]}  f5 {[%clk 0:17:47]} 24. a3 {[%clk 0:16:36]}  fxe4 {[%clk 0:12:21]} 25. axb4 {[%clk 0:17:02]}  exf3 {[%clk 0:12:25]} 26. Re4 {[%clk 0:12:34]}  g5 {[%clk 0:09:20]} 27. h4 {[%clk 0:13:03]}  h6 {[%clk 0:05:14]} 28. Re6 {[%clk 0:13:32]}  Kg7 {[%clk 0:03:24]} 29. hxg5 {[%clk 0:13:47]}  hxg5 {[%clk 0:03:22]} 30. Re7+ {[%clk 0:10:03]}  Kf6 {[%clk 0:03:45]} 31. Rd7 {[%clk 0:10:23]}  Rh8 {[%clk 0:01:00]} 32. Rxb7 {[%clk 0:06:51]}  Rh2 {[%clk 0:01:27]} 33. Rxb6+ {[%clk 0:07:20]}  Ke5 {[%clk 0:01:28]} 34. Rg6 {[%clk 0:07:03]}  Rxf2 {[%clk 0:01:52]} 35. Ba6 {[%clk 0:07:30]}  Re2 {[%clk 0:00:55]} 36. Rg8 {[%clk 0:07:37]}  Re1+ {[%clk 0:01:10]} 37. Ka2 {[%clk 0:07:25]}  f2 {[%clk 0:01:32]} 38. Kb3 {[%clk 0:07:24]}  f1=Q {[%clk 0:01:29]} 39. Bxf1 {[%clk 0:07:51]}  Rxf1 {[%clk 0:01:53]} 40. b5 {[%clk 0:04:34]}  Kd5 {[%clk 0:01:31]} 41. Rg6 {[%clk 0:04:38]}  Re1 {[%clk 0:29:02]} 42. Ka4 {[%clk 0:28:12]}  Ra1+ {[%clk 0:24:15]} 43. Kb4 {[%clk 0:27:33]}  Bd2+ {[%clk 0:19:57]} 44. Kb3 {[%clk 0:28:02]}  Ra5 {[%clk 0:19:10]} 45. b6 {[%clk 0:28:05]}  Rb5+ {[%clk 0:18:50]} 46. Kc2 {[%clk 0:25:28]}  Bf4 {[%clk 0:18:15]} 47. Kc3 {[%clk 0:24:26]}  Kc5 {[%clk 0:18:19]} 48. Re6 {[%clk 0:24:23]}  Rxb6 {[%clk 0:18:19]} 49. Re8 {[%clk 0:23:57]}  Rg6 {[%clk 0:17:40]} 50. Kd3 {[%clk 0:23:34]}  g4 {[%clk 0:17:44]} 51. b4+ {[%clk 0:23:29]}  Kb5 {[%clk 0:17:56]} 52. Ke2 {[%clk 0:23:14]}  g3 {[%clk 0:18:17]} 53. Kf1 {[%clk 0:22:57]}  g2+ {[%clk 0:18:40]} 54. Kg1 {[%clk 0:23:24]}  Bh2+ {[%clk 0:18:40]} 0-1


[Site "http://www.chessbomb.com"]

[Event "World Junior Chess Championship U20 2022"]
[White "Javornik, Nik"]
[Black "Zemach, Nadav"]
[WhiteFideId "14636549"]
[BlackFideId "2820927"]
[WhiteElo "2064"]
[BlackElo "2293"]
[Result "0-1"]
[Round "04"]
[TimeControl "5400+30"]
[Date "2022.10.14"]
[WhiteClock "0:29:00"]
[BlackClock "0:29:48"]

1. e4 {[%clk 1:29:28]}  e5 {[%clk 1:30:55]} 2. Nc3 {[%clk 1:29:31]}  Nf6 {[%clk 1:31:15]} 3. Bc4 {[%clk 1:29:56]}  Nc6 {[%clk 1:30:18]} 4. d3 {[%clk 1:30:15]}  Bb4 {[%clk 1:30:02]} 5. Ne2 {[%clk 1:30:12]}  d5 {[%clk 1:26:36]} 6. exd5 {[%clk 1:30:35]}  Nxd5 {[%clk 1:27:00]} 7. O-O {[%clk 1:29:59]}  Nxc3 {[%clk 1:26:18]} 8. Nxc3 {[%clk 1:27:44]}  O-O {[%clk 1:26:28]} 9. a3 {[%clk 1:25:59]}  Bxc3 {[%clk 1:14:08]} 10. bxc3 {[%clk 1:26:28]}  Re8 {[%clk 1:14:27]} 11. f4 {[%clk 1:19:44]}  exf4 {[%clk 1:06:45]} 12. Bxf4 {[%clk 1:19:58]}  Be6 {[%clk 1:07:07]} 13. Bxe6 {[%clk 1:18:58]}  Rxe6 {[%clk 1:05:37]} 14. Rb1 {[%clk 1:17:13]}  b6 {[%clk 1:05:20]} 15. Qf3 {[%clk 1:15:10]}  Qd7 {[%clk 1:04:05]} 16. Rb5 {[%clk 1:10:12]}  Rae8 {[%clk 1:03:06]} 17. Rg5 {[%clk 0:58:31]}  f6 {[%clk 0:49:42]} 18. Rg4 {[%clk 0:55:54]}  Kh8 {[%clk 0:48:18]} 19. Qh3 {[%clk 0:43:38]}  Re2 {[%clk 0:46:00]} 20. d4 {[%clk 0:33:42]}  Rxc2 {[%clk 0:41:40]} 21. Bh6 {[%clk 0:32:49]}  gxh6 {[%clk 0:39:06]} 22. Qh4 {[%clk 0:31:13]}  Qe6 {[%clk 0:30:24]} 23. Re4 {[%clk 0:29:00]}  Rxg2+ {[%clk 0:29:48]} 0-1


[Site "http://www.chessbomb.com"]

[Event "World Junior Chess Championship U20 2022"]
[White "Candian, Lorenzo"]
[Black "Flores Quillas, Diego Saul Rodri"]
[WhiteFideId "2863664"]
[BlackFideId "3822508"]
[WhiteElo "2022"]
[BlackElo "2291"]
[Result "1/2-1/2"]
[Round "04"]
[TimeControl "5400+30"]
[Date "2022.10.14"]
[WhiteClock "0:18:59"]
[BlackClock "0:23:19"]

1. e4 {[%clk 1:30:57]}  c5 {[%clk 1:24:58]} 2. Nf3 {[%clk 1:31:02]}  d6 {[%clk 1:25:21]} 3. d4 {[%clk 1:31:23]}  cxd4 {[%clk 1:25:47]} 4. Qxd4 {[%clk 1:31:47]}  Nc6 {[%clk 1:24:33]} 5. Bb5 {[%clk 1:32:11]}  Bd7 {[%clk 1:24:58]} 6. Bxc6 {[%clk 1:32:35]}  bxc6 {[%clk 1:25:25]} 7. c4 {[%clk 1:32:09]}  e5 {[%clk 1:22:54]} 8. Qd3 {[%clk 1:31:51]}  Nf6 {[%clk 1:22:21]} 9. Nc3 {[%clk 1:31:46]}  Qc7 {[%clk 1:19:12]} 10. Bg5 {[%clk 1:26:26]}  Be7 {[%clk 1:19:09]} 11. Rd1 {[%clk 1:25:42]}  Be6 {[%clk 1:10:33]} 12. Bxf6 {[%clk 1:08:53]}  gxf6 {[%clk 1:10:53]} 13. Nh4 {[%clk 1:06:46]}  Rg8 {[%clk 1:10:42]} 14. O-O {[%clk 1:00:25]}  Rd8 {[%clk 1:02:55]} 15. Rd2 {[%clk 0:45:33]}  Bf8 {[%clk 0:53:28]} 16. b4 {[%clk 0:32:34]}  Qb6 {[%clk 0:42:42]} 17. Rb1 {[%clk 0:15:42]}  Rg4 {[%clk 0:25:36]} 18. g3 {[%clk 0:15:29]}  Qd4 {[%clk 0:12:25]} 19. Qxd4 {[%clk 0:13:22]}  exd4 {[%clk 0:12:50]} 20. Rxd4 {[%clk 0:13:30]}  f5 {[%clk 0:12:45]} 21. h3 {[%clk 0:13:23]}  Bg7 {[%clk 0:09:16]} 22. hxg4 {[%clk 0:12:18]}  Bxd4 {[%clk 0:09:42]} 23. Ne2 {[%clk 0:12:16]}  Bb6 {[%clk 0:10:00]} 24. Nxf5 {[%clk 0:11:48]}  Bxc4 {[%clk 0:10:22]} 25. Nf4 {[%clk 0:10:57]}  Bxa2 {[%clk 0:10:10]} 26. Rd1 {[%clk 0:08:14]}  d5 {[%clk 0:08:42]} 27. exd5 {[%clk 0:05:05]}  cxd5 {[%clk 0:08:50]} 28. Re1+ {[%clk 0:04:11]}  Kd7 {[%clk 0:08:47]} 29. b5 {[%clk 0:03:04]}  Kc7 {[%clk 0:07:51]} 30. Rc1+ {[%clk 0:02:58]}  Kb8 {[%clk 0:05:39]} 31. Ne7 {[%clk 0:02:53]}  Kb7 {[%clk 0:06:04]} 32. Nc6 {[%clk 0:02:21]}  Re8 {[%clk 0:06:04]} 33. Rd1 {[%clk 0:02:38]}  Bc4 {[%clk 0:04:02]} 34. Nxd5 {[%clk 0:02:09]}  Bxb5 {[%clk 0:04:25]} 35. Nxb6 {[%clk 0:02:23]}  Kxb6 {[%clk 0:03:55]} 36. Nb4 {[%clk 0:02:16]}  a5 {[%clk 0:02:39]} 37. Nd5+ {[%clk 0:02:33]}  Kc5 {[%clk 0:03:01]} 38. Nc7 {[%clk 0:02:30]}  Rb8 {[%clk 0:02:41]} 39. Nxb5 {[%clk 0:01:44]}  Rxb5 {[%clk 0:02:57]} 40. Rd7 {[%clk 0:02:14]}  a4 {[%clk 0:03:00]} 41. Rxf7 {[%clk 0:25:47]}  a3 {[%clk 0:32:30]} 42. Kg2 {[%clk 0:23:21]}  Kb4 {[%clk 0:32:12]} 43. Rxh7 {[%clk 0:23:41]}  a2 {[%clk 0:31:45]} 44. Rh1 {[%clk 0:24:04]}  Kc3 {[%clk 0:31:57]} 45. Ra1 {[%clk 0:24:12]}  Kb2 {[%clk 0:32:17]} 46. Rxa2+ {[%clk 0:24:39]}  Kxa2 {[%clk 0:32:43]} 47. Kf3 {[%clk 0:24:15]}  Kb3 {[%clk 0:32:42]} 48. Ke4 {[%clk 0:22:13]}  Kc4 {[%clk 0:31:48]} 49. f4 {[%clk 0:22:24]}  Kc5 {[%clk 0:29:45]} 50. Ke5 {[%clk 0:22:38]}  Kc6+ {[%clk 0:30:08]} 51. Ke6 {[%clk 0:22:56]}  Rb3 {[%clk 0:23:03]} 52. g5 {[%clk 0:17:46]}  Rxg3 {[%clk 0:22:46]} 53. Kf7 {[%clk 0:18:03]}  Rg4 {[%clk 0:22:27]} 54. g6 {[%clk 0:18:19]}  Rxf4+ {[%clk 0:22:49]} 55. Ke6 {[%clk 0:17:57]}  Rg4 {[%clk 0:22:45]} 56. Kf7 {[%clk 0:18:13]}  Kd7 {[%clk 0:22:57]} 57. g7 {[%clk 0:18:35]}  Rf4+ {[%clk 0:23:19]} 58. Kg6 {[%clk 0:18:59]} 1/2-1/2


[Site "http://www.chessbomb.com"]

[Event "World Junior Chess Championship U20 2022"]
[White "Vagman, Roy"]
[Black "Urbani, Gabriel"]
[WhiteFideId "2828995"]
[BlackFideId "2830138"]
[WhiteElo "2274"]
[BlackElo "2129"]
[Result "1-0"]
[Round "04"]
[TimeControl "5400+30"]
[Date "2022.10.14"]
[WhiteClock "0:47:10"]
[BlackClock "0:40:47"]

1. e4 {[%clk 1:30:56]}  e5 {[%clk 1:30:44]} 2. Nf3 {[%clk 1:30:56]}  Nc6 {[%clk 1:31:08]} 3. Bb5 {[%clk 1:31:41]}  a6 {[%clk 1:31:31]} 4. Ba4 {[%clk 1:32:02]}  Nf6 {[%clk 1:31:52]} 5. Nc3 {[%clk 1:32:24]}  b5 {[%clk 1:29:56]} 6. Bb3 {[%clk 1:32:48]}  Bc5 {[%clk 1:29:25]} 7. Nd5 {[%clk 1:33:02]}  O-O {[%clk 1:26:29]} 8. d3 {[%clk 1:33:18]}  h6 {[%clk 1:25:31]} 9. c3 {[%clk 1:33:37]}  d6 {[%clk 1:25:00]} 10. Nxf6+ {[%clk 1:33:58]}  Qxf6 {[%clk 1:25:20]} 11. Bd5 {[%clk 1:34:24]}  Bd7 {[%clk 1:23:03]} 12. Rg1 {[%clk 1:34:27]}  Qd8 {[%clk 1:08:14]} 13. g4 {[%clk 1:34:37]}  Kh7 {[%clk 1:07:35]} 14. g5 {[%clk 1:30:50]}  g6 {[%clk 1:00:00]} 15. gxh6 {[%clk 1:29:17]}  f6 {[%clk 0:57:09]} 16. Nh4 {[%clk 1:20:29]}  Ne7 {[%clk 0:56:26]} 17. Bxa8 {[%clk 1:12:14]}  Qxa8 {[%clk 0:56:31]} 18. Be3 {[%clk 1:08:39]}  Bxe3 {[%clk 0:56:07]} 19. fxe3 {[%clk 1:09:02]}  c5 {[%clk 0:55:59]} 20. Qe2 {[%clk 1:06:54]}  Be6 {[%clk 0:52:38]} 21. O-O-O {[%clk 1:02:17]}  Qd8 {[%clk 0:49:30]} 22. Qg2 {[%clk 0:50:56]}  Rg8 {[%clk 0:46:40]} 23. Rdf1 {[%clk 0:48:51]}  Qa5 {[%clk 0:46:16]} 24. a3 {[%clk 0:47:50]}  b4 {[%clk 0:44:31]} 25. Rxf6 {[%clk 0:47:40]}  bxa3 {[%clk 0:42:53]} 26. Rxe6 {[%clk 0:47:41]}  Nc6 {[%clk 0:40:54]} 27. Rxg6 {[%clk 0:46:27]}  axb2+ {[%clk 0:40:51]} 28. Qxb2 {[%clk 0:46:48]}  Rb8 {[%clk 0:40:47]} 29. Rg7+ {[%clk 0:47:10]} 1-0


[Site "http://www.chessbomb.com"]

[Event "World Junior Chess Championship U20 2022"]
[White "Momin, Fayzan"]
[Black "Nouri, Alekhine"]
[WhiteFideId "7805225"]
[BlackFideId "5216184"]
[WhiteElo "1974"]
[BlackElo "2251"]
[Result "0-1"]
[Round "04"]
[TimeControl "5400+30"]
[Date "2022.10.14"]
[WhiteClock "1:10:27"]
[BlackClock "0:32:38"]

1. d4 {[%clk 1:27:26]}  Nf6 {[%clk 1:30:13]} 2. Nf3 {[%clk 1:27:50]}  g6 {[%clk 1:30:09]} 3. c4 {[%clk 1:28:15]}  c5 {[%clk 1:29:43]} 4. Nc3 {[%clk 1:28:39]}  cxd4 {[%clk 1:29:50]} 5. Nxd4 {[%clk 1:29:06]}  Bg7 {[%clk 1:30:06]} 6. e4 {[%clk 1:29:28]}  d6 {[%clk 1:30:11]} 7. f3 {[%clk 1:29:51]}  O-O {[%clk 1:30:16]} 8. Be3 {[%clk 1:30:18]}  Nc6 {[%clk 1:29:50]} 9. Nc2 {[%clk 1:30:29]}  Qa5 {[%clk 1:28:01]} 10. a3 {[%clk 1:30:22]}  Be6 {[%clk 1:27:23]} 11. Qd2 {[%clk 1:30:26]}  Rac8 {[%clk 1:22:08]} 12. Rc1 {[%clk 1:21:14]}  Ne5 {[%clk 1:22:08]} 13. b3 {[%clk 1:21:14]}  a6 {[%clk 1:18:19]} 14. Nd5 {[%clk 1:19:45]}  Qxd2+ {[%clk 1:18:32]} 15. Kxd2 {[%clk 1:19:54]}  Bxd5 {[%clk 1:18:34]} 16. cxd5 {[%clk 1:20:11]}  Nfd7 {[%clk 1:17:56]} 17. Be2 {[%clk 1:20:11]}  f5 {[%clk 1:12:51]} 18. Nd4 {[%clk 1:12:34]}  f4 {[%clk 0:39:10]} 19. Bf2 {[%clk 1:12:58]}  Nc5 {[%clk 0:38:51]} 20. Rc3 {[%clk 1:10:46]}  Ng4 {[%clk 0:38:30]} 21. Bg1 {[%clk 1:09:15]}  Ne3 {[%clk 0:38:50]} 22. Rxc5 {[%clk 1:08:40]}  Rxc5 {[%clk 0:38:55]} 23. Ne6 {[%clk 1:08:39]}  Rc2+ {[%clk 0:38:31]} 24. Ke1 {[%clk 1:08:39]}  Nxg2+ {[%clk 0:35:57]} 25. Kf2 {[%clk 1:09:07]}  Rfc8 {[%clk 0:35:51]} 26. h4 {[%clk 1:09:43]}  Be5 {[%clk 0:35:47]} 27. h5 {[%clk 1:09:43]}  Ra2 {[%clk 0:31:44]} 28. hxg6 {[%clk 1:10:06]}  hxg6 {[%clk 0:32:08]} 29. Rh6 {[%clk 1:10:26]}  Rcc2 {[%clk 0:32:00]} 30. Rxg6+ {[%clk 1:10:44]}  Kf7 {[%clk 0:32:16]} 31. Rg7+ {[%clk 1:10:27]}  Bxg7 {[%clk 0:32:38]} 0-1


[Site "http://www.chessbomb.com"]